Cogmind - Beta 12 *** ADVENTURER MODE // 2023.05.14 @ 17:28:48 Player: Ms. V3-11A Result: Destroyed by EX-DEC with AWS/EX-DEC Performance ------------- Evolutions (1) 500 Regions Visited (4) 800 Robots Destroyed (40) 200 Value Destroyed (640) 640 Prototype IDs (3) 60 Alien Tech Used (0) 0 Bonus (-517) -517 TOTAL SCORE: 1683 Bonus ------- Friendly Fire -517 Cogmind --------- Core Integrity 0/400 Matter 119/300 Energy 240/240 System Corruption 10% Temperature Warning (324) Movement Core (1600) Ox31 Location -9/Exiles Parts ------- > --- POWER (1) -------- Nuclear Core > --- PROPULSION (3) --- (None) > --- UTILITY (3) ------ Huge Storage Unit Improved Targeting Computer > --- WEAPON (2) ------- Advanced Beam Cannon Improved Assault Rifle > --- INVENTORY (25) --- Huge Storage Unit High-capacity Battery (250) Medium Matter Pod (62) Medium Matter Pod (0) Improved Sensor Array Improved Sensor Array Improved Signal Interpreter Improved Signal Interpreter Improved Terrain Scanner Improved Targeting Computer Improved Targeting Computer Improved Weapon Shielding Hardened Light Armor Plating Hardened Light Armor Plating Advanced Beam Cannon Heavy Assault Rifle Rocket Launcher Peak State ------------ > --- POWER ------------ Nuclear Core > --- PROPULSION ------- Light Treads Light Treads Improved Treads > --- UTILITY ---------- Huge Storage Unit Gravity Neutralizer Improved Targeting Computer > --- WEAPON ----------- Improved Assault Rifle Improved Assault Rifle > --- INVENTORY -------- Light Treads Light Treads Light Treads Huge Storage Unit High-capacity Battery Medium Matter Pod Medium Matter Pod Improved Sensor Array Improved Sensor Array Improved Signal Interpreter Improved Signal Interpreter Improved Terrain Scanner Improved Targeting Computer Improved Targeting Computer Improved Weapon Shielding Hardened Light Armor Plating Hardened Light Armor Plating Hardened Light Armor Plating Advanced Beam Cannon Advanced Beam Cannon Heavy Assault Rifle Improved Assault Rifle Rocket Launcher [Rating: 26] Favorites ----------- Power Nuclear Core Engine Ion Engine Power Core Nuclear Core Propulsion Light Treads Treads Light Treads Leg Aluminum Leg Utility Improved Targeting Computer Device Gravity Neutralizer Storage Huge Storage Unit Processor Improved Targeting Computer Protection Hardened Light Armor Plating Weapon Improved Assault Rifle Energy Gun EM Pulse Gun Energy Cannon Advanced Beam Cannon Ballistic Gun Improved Assault Rifle Ballistic Cannon Improved Light Cannon Launcher Rocket Launcher Build | -11 -10 -9 -9 -9 ------- Run | Jun Mat Mat Min Exi Slots Evolved 2 | . . 2 . . Power . | . . . . . Propulsion 1 | . . 1 . . Utility 1 | . . 1 . . Weapon . | . . . . . Parts Attached 39 | 2 13 10 1 13 Power 3 | 1 . 1 . 1 Engine 1 | 1 . . . . Core 2 | . . 1 . 1 Reactor . | . . . . . Propulsion 11 | . 4 2 1 4 Treads 10 | . 3 2 1 4 Leg 1 | . 1 . . . Wheel . | . . . . . Hover . | . . . . . Flight . | . . . . . Utility 8 | . 2 3 . 3 Device 1 | . . . . 1 Storage 2 | . 1 1 . . Processor 1 | . 1 . . . Hackware . | . . . . . Protection 4 | . . 2 . 2 Artifact . | . . . . . Weapon 17 | 1 7 4 . 5 Energy Gun . | . . . . . Energy Cannon 3 | . 2 . . 1 Ballistic Gun 7 | 1 1 3 . 2 Ballistic Cannon 4 | . 4 . . . Launcher 3 | . . 1 . 2 Special Weapon . | . . . . . Impact Weapon . | . . . . . Slashing Weapon . | . . . . . Piercing Weapon . | . . . . . Special Melee Weapon . | . . . . . Unidentified Prototypes 3 | . 1 1 . 1 Parts Lost 12 | . . . . 12 Power 1 | . . . . 1 Propulsion 7 | . . . . 7 Utility 2 | . . . . 2 Weapon 2 | . . . . 2 Highest Loss Streak 5 | . . . . 5 To Critical Strikes 1 | . . . . 1 Average Slot Usage (%) 99 | . 99 99 99 98 Engine 5 | . 14 8 . . Core 6 | . . 2 11 10 Treads 25 | . 1 33 32 32 Leg 6 | . 26 . . . Storage 11 | . 14 11 11 11 Processor 11 | . 13 11 11 11 Protection 8 | . . 11 11 10 Energy Cannon 7 | . . 11 11 7 Ballistic Gun 9 | . . 10 11 13 Ballistic Cannon 6 | . 26 . . . Naked Turns . | . . . . . Heaviest Build 99 | 14 33 99 99 99 Greatest Support 63 | 20 40 63 63 63 Greatest Overweight (x) 2 | . 1 1 1 2 Average Overweight (x) . | . . . 1 1 Largest Inventory Capacity 25 | 8 15 25 25 25 Average Capacity 21 | 8 13 21 25 25 Most Carried 25 | 6 15 25 25 25 Average Carried 19 | 5 11 18 25 23 Final Capacity 25 | 8 15 25 25 25 Final Carried 25 | 4 15 25 25 17 Class Distribution -------------------- 100% | Mutant Dominant Class ---------------- Mutant | -10/Materials Mutant | -9/Materials Mutant | -9/Mines Mutant | -9/Exiles Resources | -11 -10 -9 -9 -9 ----------- Run | Jun Mat Mat Min Exi Matter Collected 1199 | 200 158 390 153 298 Remotely . | . . . . . Salvage Created 1264 | . 202 739 133 190 Parts 84 | . 12 40 7 25 Haulers Intercepted 3 | . 2 1 . . Recyclers Shooed . | . . . . . Parts Field Recycled . | . . . . . Retrieved Matter . | . . . . . Parts Self-Destructed . | . . . . . Prevented . | . . . . . Kills | -11 -10 -9 -9 -9 ------- Run | Jun Mat Mat Min Exi Combat Hostiles Destroyed 33 | . 8 18 3 4 Guns 7 | . . 4 2 1 Cannons 20 | . 8 11 1 . AOE 6 | . . 3 . 3 Classes Destroyed 10 | . 4 3 1 2 Worker 1 | . . 1 . . Hauler 3 | . 2 1 . . Recycler 3 | . . 3 . . Mechanic 1 | . 1 . . . Turret 1 | . . . . 1 Swarmer 19 | . 6 13 . . Grunt 6 | . 2 2 2 . Duelist 1 | . . . 1 . Sentry 3 | . . 3 . . Assembled 6 | . . . . 6 Best Kill Streak 5 | . 3 5 3 3 Combat Bots Only 4 | . 3 4 3 3 Max Kills in Single Turn 3 | . 1 3 1 3 Gunslinging . | . . . . . Exploded 3 | . . 3 . 3 Melee . | . . . . . Uniques/NPCs Destroyed 3 | . . . . 3 8R-AWN (-9/Exiles) EX-BIN (-9/Exiles) EX-HEX (-9/Exiles) Combat | -11 -10 -9 -9 -9 -------- Run | Jun Mat Mat Min Exi Damage Taken 2742 | . 212 490 42 1998 Core 423 | . 19 59 . 345 Absorbed by Shields . | . . . . . Core Remaining (%) 96 | 100 92 . . . Volleys Fired 115 | . 22 28 4 61 Largest 2 | . 2 2 2 2 Hottest 91 | . 78 91 91 91 Shots Fired 216 | . 44 55 8 109 Gun 127 | . . 27 4 96 Cannon 77 | . 44 27 4 2 Launcher 12 | . . 1 . 11 Special . | . . . . . Kinetic 171 | . 44 27 4 96 Thermal 33 | . . 27 4 2 Explosive 12 | . . 1 . 11 Electromagnetic . | . . . . . Robot Hit Streak 35 | . 9 21 9 35 Robot Miss Streak 3 | . 3 1 1 1 Penetration Max . | . . . . . Secondary Targets . | . . . . . Shots Hit Robots 158 | . 26 36 6 90 Core Hits 79 | . 11 25 4 39 Critical Kills 1 | . . . 1 . Critical Parts Destroyed 1 | . . . . 1 Critical Strikes 4 | . 2 . 1 1 Destroy 2 | . . . 1 1 Blast 2 | . 2 . . . Melee Attacks . | . . . . . Impact . | . . . . . Slashing . | . . . . . Piercing . | . . . . . Sneak Attacks . | . . . . . Combat Hostiles . | . . . . . Follow-up Attacks . | . . . . . Damage Inflicted 3700 | . 625 831 105 2139 Guns 1514 | . . 181 44 1289 Cannons 1260 | . 625 534 61 40 Explosions 926 | . . 116 . 810 Melee . | . . . . . Ramming . | . . . . . Kinetic 2139 | . 625 181 44 1289 Thermal 635 | . . 534 61 40 Explosive 926 | . . 116 . 810 Electromagnetic . | . . . . . Impact . | . . . . . Slashing . | . . . . . Piercing . | . . . . . Highest Corruption 10 | . . . . 10 Average Corruption 4 | . . . . 4 Corruption Purged . | . . . . . Corruption Blocked . | . . . . . Effects 2 | . . . . 2 Heat Flow Errors 1 | . . . . 1 Alerts 1 | . . . . 1 Overload Shots . | . . . . . Overflow Damage 10 | . 4 4 . 2 Projectiles 8 | . 4 4 . . Explosions 2 | . . . . 2 Melee . | . . . . . Knockbacks 5 | . 5 . . . Impact . | . . . . . Kinetic 5 | . 5 . . . Secondary . | . . . . . Self-Inflicted Damage . | . . . . . Shots . | . . . . . Rammed . | . . . . . Targets Rammed . | . . . . . Kicked . | . . . . . Crushed . | . . . . . Highest Temperature 434 | . 434 246 180 324 Average Temperature 90 | . 96 75 93 293 Received Heat Transfer 216 | . 111 93 12 . Effects 2 | . 2 . . . Shutdowns 1 | . 1 . . . Short Circuit 1 | . 1 . . . Siege Activations . | . . . . . Robots Corrupted . | . . . . . Combat Hostiles . | . . . . . Parts Fried . | . . . . . Impact Corruptions . | . . . . . Robots Melted . | . . . . . Combat Hostiles . | . . . . . Parts Melted . | . . . . . Heat Transferred 1147 | . . 962 111 74 Parts Sabotaged . | . . . . . Parts Stolen . | . . . . . Parts Stripped . | . . . . . Power Chain Reactions . | . . . . . Missiles Intercepted . | . . . . . Alert | -11 -10 -9 -9 -9 ------- Run | Jun Mat Mat Min Exi Peak Influence 234 | . 197 234 132 . Initial 62 | . . . 62 . Average 56 | . 33 81 57 . Maximum Alert Level 1 | . . 1 . . Low Security (%) 99 | 100 100 98 100 . Level 1 . | . . 1 . . Level 2 . | . . . . . Level 3 . | . . . . . Level 4 . | . . . . . Level 5 . | . . . . . High Security . | . . . . . Max Security . | . . . . . Squads Dispatched . | . . . . . Investigation . | . . . . . Extermination . | . . . . . Reinforcement . | . . . . . Assault . | . . . . . Garrison . | . . . . . Intercept . | . . . . . Searches Triggered . | . . . . . Construction Impeded . | . . . . . Haulers Reinforced . | . . . . . Active Scanning Responses . | . . . . . Cargo Convoy Interrupts . | . . . . . Stealth | -11 -10 -9 -9 -9 --------- Run | Jun Mat Mat Min Exi Distress Signals 3 | . . 3 . . Communications Jammed . | . . . . . Distress Signals . | . . . . . Times Spotted 73 | . 15 29 3 26 Peak Tracking Total 8 | . 4 8 3 8 Tactical Retreats 5 | . . . . 5 Traps | -11 -10 -9 -9 -9 ------- Run | Jun Mat Mat Min Exi Traps Triggered . | . . . . . Indirectly . | . . . . . Trap Hack Attempts . | . . . . . Triggered . | . . . . . Disarmed . | . . . . . Reprogrammed . | . . . . . Reused . | . . . . . Traps Extracted . | . . . . . Installed . | . . . . . Triggered . | . . . . . Machines | -11 -10 -9 -9 -9 ---------- Run | Jun Mat Mat Min Exi Machines Disabled 8 | . 1 . . 7 Max in Single Turn 2 | . 1 . . 2 Machines Repaired . | . . . . . Machines Sabotaged . | . . . . . Overloaded Fab Kills . | . . . . . Hacking | -11 -10 -9 -9 -9 --------- Run | Jun Mat Mat Min Exi Machines Accessed 6 | . 3 2 . 1 Terminals 5 | . 3 2 . . Fabricators . | . . . . . Repair Stations . | . . . . . Recycling Units . | . . . . . Scanalyzers . | . . . . . Garrison Access . | . . . . . Total Hacks 12 | . 9 2 . 1 Successful 6 | . 4 1 . 1 Failed 6 | . 5 1 . . Catastrophic 1 | . . 1 . . Database Lockouts . | . . . . . Manual 1 | . . 1 . . Terminals 11 | . 9 2 . . Fabricators . | . . . . . Repair Stations . | . . . . . Recycling Units . | . . . . . Scanalyzers . | . . . . . Garrison Access . | . . . . . Terminal Hacks 6 | . 4 1 . 1 Record 1 | . . . . 1 Robot Analysis 1 | . 1 . . . Recycling Unit Index 1 | . 1 . . . Hauler Manifests 1 | . 1 . . . Registered Prototypes 1 | . . 1 . . Zone Layout 1 | . 1 . . . Fabricator Hacks . | . . . . . Repair Station Hacks . | . . . . . Recycling Unit Hacks . | . . . . . Scanalyzer . | . . . . . Garrison Access Hacks . | . . . . . Unauthorized Hacks . | . . . . . Terminals . | . . . . . Fabricators . | . . . . . Repair Stations . | . . . . . Recycling Units . | . . . . . Scanalyzers . | . . . . . Garrison Access . | . . . . . Data Cores Recovered . | . . . . . Used . | . . . . . Hacking Detections 4 | . 2 2 . . Full Trace Events . | . . . . . Feedback Events . | . . . . . Feedback Blocked . | . . . . . Robot Schematics Acquired . | . . . . . Robots Built . | . . . . . Authchips . | . . . . . Time . | . . . . . Total Robot Build Rating . | . . . . . Part Schematics Acquired . | . . . . . Parts Built . | . . . . . Authchips . | . . . . . Time . | . . . . . Total Part Build Rating . | . . . . . Parts Repaired . | . . . . . Time . | . . . . . Parts Recycled . | . . . . . Recycled Matter . | . . . . . Retrieved Matter . | . . . . . Retrieved Components . | . . . . . Parts Scanalyzed . | . . . . . Part Schematics Acquired . | . . . . . Parts Damaged . | . . . . . Bothacking | -11 -10 -9 -9 -9 ------------ Run | Jun Mat Mat Min Exi Used RIF Installer . | . . . . . Robots Hacked . | . . . . . Non-combat . | . . . . . Combat . | . . . . . Robot Hacks Applied . | . . . . . Relay Couplers Released . | . . . . . Fabnet Peak Effective % . | . . . . . Robots Rewired . | . . . . . Allies Hacked . | . . . . . Hacks Repelled . | . . . . . Allies | -11 -10 -9 -9 -9 -------- Run | Jun Mat Mat Min Exi Total Allies 2 | . . . 2 . Largest Group 2 | . . . 2 2 Highest-Rated Group 47 | . . . 47 47 Highest-Rated Ally 31 | . . . 31 31 Total Orders . | . . . . . Ally Attacks . | . . . . . Total Damage . | . . . . . Kills . | . . . . . Allies Corrupted . | . . . . . Allies Melted . | . . . . . Intel | -11 -10 -9 -9 -9 ------- Run | Jun Mat Mat Min Exi Robot Analysis Total 1 | . 1 . . . Derelict Logs Recovered 2 | . . . 2 . Drone Launches . | . . . . . Drone Recoveries . | . . . . . Exploration | -11 -10 -9 -9 -9 ------------- Run | Jun Mat Mat Min Exi Turns Passed 4722 | 4 1126 988 878 1726 Spaces Moved 2000 | 1 591 423 349 636 Core . | . . . . . Treads 1431 | . 23 423 349 636 Legs 569 | 1 568 . . . Wheels . | . . . . . Hover . | . . . . . Flight . | . . . . . Fastest Speed 120 | 120 120 160 240 240 Average Speed 211 | 120 167 203 240 241 Slowest Speed 320 | 120 240 240 240 320 Overloaded Moves . | . . . . . Propulsion Burnouts . | . . . . . Robots Hopped . | . . . . . Cave-ins Triggered . | . . . . . Exploration Rate (%) 58 | 2 69 49 82 90 Regions Visited 4 Branch Regions 2 Pre-discovered Areas 2 | . . . 1 1 Known Exits Taken . | . . . . . Unknown Exits Taken 4 | 1 1 1 1 . Scrap Searched 1 | . . . 1 . Spaces Dug . | . . . . . Terrain Destroyed 21 | . . 5 . 16 Melee . | . . . . . Projectile . | . . . . . AOE 21 | . . 5 . 16 Terrain Rammed . | . . . . . Walls Destroyed . | . . . . . Machines Disabled . | . . . . . Actions | -11 -10 -9 -9 -9 --------- Run | Jun Mat Mat Min Exi Total 2288 | 4 689 499 382 714 Wait 68 | . 25 14 29 . Move 1996 | . 590 422 348 636 Hop . | . . . . . Pick Up 37 | . 20 16 . 1 Fast Attach 11 | . 7 1 1 2 Attach 11 | . 1 2 . 8 Detach 3 | . 2 1 . . Swap 17 | 2 5 7 . 3 Drop 30 | 2 17 8 . 3 Fire 115 | . 22 28 4 61 Melee . | . . . . . Ram . | . . . . . Kick . | . . . . . Crush . | . . . . . Escape Stasis . | . . . . . Rewire . | . . . . . Trap . | . . . . . Miscellaneous . | . . . . . Route ------- -11/Junkyard -10/Materials (discovered 3 exits: *Mat x2 / [*Min]) -9/Materials -9/Mines (discovered 3 exits: [*Mat x2] / *Exi) -9/Exiles (discovered 2 exits: [*Min x2]) History --------- Turn | Location | Event 5 | -11/Junkyard | Discovered new exit (range 0) 5 | -11/Junkyard | Entered Materials 206 | -10/Materials | Discovered new exit (range 8) 312 | -10/Materials | Build established: Mutant 394 | -10/Materials | Discovered new exit (range 14) 1073 | -10/Materials | Discovered new exit (range 3) 1131 | -10/Materials | Entered another Materials area 1131 | -9/Materials | Evolved 2 slots: Propulsion x1, Utility x1 1594 | -9/Materials | Discovered new exit (range 15) 2119 | -9/Materials | Entered Mines 2157 | -9/Mines | Discovered new exit (range 14) 2275 | -9/Mines | Learned location of Storage (-8) 2287 | -9/Mines | Learned Materials stockpile data 2819 | -9/Mines | Discovered new exit (range 16) 2983 | -9/Mines | Deemed a non-threat by the Exiles lab entrance 2983 | -9/Mines | Discovered new exit (range 5) 2997 | -9/Mines | Entered Exiles 2997 | -9/Exiles | Accompanied by 2 allies 3027 | -9/Exiles | Led the pair of lost Derelicts to a safe place 3031 | -9/Exiles | Discovered new exit (range 15) 3096 | -9/Exiles | Met 8R-AWN 3129 | -9/Exiles | Met EX-HEX 3298 | -9/Exiles | Visited The Gauntlet 3518 | -9/Exiles | Met EX-DEC 3578 | -9/Exiles | Learned location of Zion (-7) 3751 | -9/Exiles | Discovered new exit (range 10) 3897 | -9/Exiles | Met EX-BIN 4126 | -9/Exiles | Attacked by the Exiles 4201 | -9/Exiles | Destroyed 8R-AWN 4515 | -9/Exiles | Lost 5 parts (3n1u1w) 4628 | -9/Exiles | Destroyed EX-BIN 4634 | -9/Exiles | Destroyed EX-HEX 4688 | -9/Exiles | Core integrity fell below 50% 4716 | -9/Exiles | Core integrity fell below 20% 4720 | -9/Exiles | System corruption reached 10% 4723 | -9/Exiles | Destroyed by EX-DEC with AWS/EX-DEC Last Messages --------------- 04540_ Acquired 3 matter. 04601_ EX-BIN: "I just want to science!" 04628_ EX-BIN: "You can't kill me, my evil twin will get revenge!" 04628_ EX-BIN destroyed. 04634_ EX-HEX destroyed. 04654_ Acquired 20 matter. 04678_ Machine disabled. 04686_ DK-RAY suffers critical hit (Destroy). 04686_ Destroyed Mak. Leg. 04689_ Machine disabled. 04689_ Lgt. Treads destroyed. 04692_ Destroyed EX Chip 2. 04696_ System corrupted: IFF burst signal emitted. 04701_ Machine disabled. 04704_ Destroyed EX Chip 1. 04711_ Imp. Assault Rifle destroyed. 04714_ Machine disabled. 04717_ System corrupted: Heat flow error (+275). 04718_ Lgt. Treads destroyed. 04722_ Hrd. Light Armor Plating destroyed. Map ----- +----------------------------------------------------+ | ??????????????#"""" ""## ##""" " " | | ??????????????#"" ""#### ######""" | | ??????????????#" """"##??# #????###"" | | ??????????????#""" """#???# #??????### | | ??????????????## ""##??#! "!#?????? | | ???????????????#"" """##???#" !#?????? | | ???????????????##""" ##????#" "#?????? | | ????????????????##"""" ##?????#!!""!"#?????? | | ?????????????????### #??????########?????? | | ???????????????????##### ##???????????????????? | | ???????????????????????## #????????????????????? | | ????????????????????????# #????????????????????? | | ????????????????????????# #????????????????????? | | ????????????????????????# #????????????????????? | | ???????????????###??????# #????????????????????? | | ?????"""""???#"""""?????# #????????????????????? | | ???"""""""????"""""""???# #????????????????????? | | ??"""""" "#??#" """"#??# a #????????????????????? | | ""#""" """????"" """???#z #????????????????????? | | ""#"" ""????"" ""???# =#????????????????????? | | ""###"""########"""######!!!########?????????????? | | """"" """""""" """""!! """""""#?????????????? | | """" """""" !!!!!! "#"" "?????????? | | z z!!!!! " ""????????? | | !=%!! " " "????????? | | c @! " ""?????????? | | " #"" "?????????? | | """ " """"" " """" """"#?????????????? | | #####"""###""###"""########"""######?????????????? | | ???"" ""#""#"" ""?????" ""?????????????????? | | ???""" ""#""#""" ""?????" """#????????????????? | | ??#" """"""""#" " "#????""""""#????????????????? | | ???"""""""????"""""""?????" """"?????????????????? | | ???""""""?????"""""""#????"""""??????????????????? | | ????????????????##?#???????##????????????????????? | | ?????????????????????????????????????????????????? | | ?????????????????????????????????????????????????? | | ?????????????????????????????????????????????????? | | ?????????????????????????????????????????????????? | | | | | | | | | | | | | | | | | | | | | | | +----------------------------------------------------+ Best States ------------- Heat Dissipation 28 Energy Generation 14 Energy Capacity 250 Matter Stores 300 Matter Capacity 300 Sight Range 16 Terrain Scan Density 10 Additional Mass Support 12 Armor Coverage 150 Resistance: KI 20 Resistance: TH 20 Resistance: EX 20 Resistance: EM 20 Resistance: I 20 Resistance: S 20 Resistance: P 20 Evasion (%) 55 Targeting Accuracy 6 Recoil Reduction 3 Offensive Hacking 10 Item Schematics ----------------- None Robot Schematics ------------------ None Fabricated ------------ Nothing Alien Tech Used ----------------- None Achievements -------------- None Challenges ------------ None Game ------ Seed MicrowarpGuidedStick Manual? 0 Play Time 00:23:15 Cumulative 122.7 hours Start 2023.05.14 @ 16:57:28 End 2023.05.14 @ 17:28:48 Sessions 1 Manual Loads 0 Difficulty Adventurer Special Mode None Game No. 113 Rogue 63 Adventurer 24 Explorer 26 Win Type - Total 0 Types 0/0/0/0/0/0/0/0/0 Lore% 46 Gallery% 59 Achievement% 66 Wizard Run 0 Options --------- ASCII 0 Keyboard 0 Movement Mouse Keybinds 0 Fullscreen 0 Font 16/Smallcaps Map View 76x50 Tactical HUD 1 Map Filters NONE Filters BRIGHTNESS(125)|SATURATION(75)|LOW_CONTRAST(0,16,30)|SHIFT_HUE(130) Steam 1 RUN: 8870e72e-1a85-4149-96dd-a612d9a8b11a